bitfinex-derivatives/quotes_ETHF0:USTF0_20250308
["timestamp","ask_amount","ask_price","bid_price","bid_amount"]
[1741430295315,0.6137,2137.4,2137.2,0.6518]
[1741430295516,20.14305629,2137.5,2137.2,0.6518]
[1741430295721,20.14305629,2137.5,2137.3,1.3031]
[1741430297121,20.14305629,2137.5,2137.4,3.2078]
[1741430297416,20.75235629,2137.5,2137.4,3.2078]
[1741430300834,20.75235629,2137.5,2137.0,3.2078]
[1741430301129,20.75235629,2137.5,2137.0,3.858]
[1741430301533,20.75235629,2137.5,2137.0,0.6502]
[1741430301731,20.75235629,2137.5,2136.7,4.85046092]
[1741430302029,20.75235629,2137.5,2136.8,0.6502]
[1741430302222,20.75235629,2137.5,2136.8,1.24326475]
[1741430302828,20.75235629,2137.5,2136.8,0.6502]
[1741430303434,20.75235629,2137.5,2137.0,3.2078]
[1741430304434,20.75235629,2137.5,2136.8,0.6502]
[1741430305733,20.75235629,2137.5,2137.0,3.2078]
[1741430306328,3.2078,2137.3,2137.0,3.2078]
[1741430306534,0.6691,2137.2,2137.0,3.2078]
[1741430306735,0.6684,2137.1,2137.0,3.2078]
[1741430307437,0.6684,2137.1,2136.8,0.6502]
[1741430307833,0.6684,2137.1,2136.7,3.83]
[1741430308131,0.6684,2137.1,2136.7,4.4566]
[1741430308535,0.6684,2137.1,2136.8,0.59329902]
[1741430309133,0.6684,2137.1,2136.7,4.4566]
[1741430309834,20.14305629,2137.5,2136.7,4.4566]
[1741430310045,3.8953,2137.4,2137.0,3.2078]
[1741430310534,3.8953,2137.4,2137.1,2.47063564]
[1741430311136,3.8953,2137.4,2137.1,1.877]
[1741430313642,1.2593,2137.4,2137.1,1.877]
[1741430314636,1.2593,2137.4,2137.2,0.59382827]
[1741430315239,0.6492,2137.4,2137.2,0.59382827]
[1741430315439,0.6492,2137.4,2137.3,3.2078]
[1741430316745,20.14305629,2137.5,2137.3,3.2078]
[1741430320148,20.14305629,2137.5,2137.4,50.0]
[1741430320740,9.82305629,2137.5,2137.4,50.59356337]
[1741430322137,9.82305629,2137.5,2137.4,51.25396337]
[1741430322337,0.00701508,2137.5,2137.4,51.25396337]
[1741430323735,0.00701508,2137.5,2137.4,50.6604]
[1741430324349,26.862,2138.9,2138.4,1.89098214]
[1741430324548,5.30599407,2138.5,2138.4,1.89098214]
[1741430324949,9.30599407,2138.5,2138.4,1.89098214]
[1741430327155,9.67707432,2138.5,2138.4,1.89098214]
[1741430327545,11.55867432,2138.5,2138.2,0.00701508]
[1741430327859,0.07919407,2138.4,2137.6,3.2078]
[1741430328154,3.2078,2138.1,2137.6,3.2078]
[1741430328454,3.9006,2138.0,2137.6,3.2078]
[1741430328942,3.9006,2138.0,2137.6,3.21481508]
[1741430330451,3.9006,2138.0,2137.9,50.0]
[1741430331849,7.9006,2138.0,2137.9,50.0]
[1741430332753,7.97980476,2138.0,2137.9,50.0]
[1741430333051,3.97980476,2138.0,2137.9,50.0]
[1741430333854,3.97980524,2138.0,2137.9,50.0]
[1741430334754,3.9006,2138.0,2137.9,50.0]
[1741430335056,3.9006,2138.0,2137.9,26.59197513]
[1741430335756,3.97980427,2138.0,2137.9,26.59197513]
[1741430336163,3.97980459,2138.0,2137.9,26.59197513]
[1741430336657,3.9006,2138.0,2137.9,26.59197513]
[1741430337459,3.9798051,2138.0,2137.9,26.59197513]
[1741430339752,7.1876051,2138.0,2137.9,26.59197513]
[1741430339958,7.1084,2138.0,2137.6,26.59899021]
[1741430340458,7.1084,2138.0,2137.6,27.22639021]
[1741430340857,7.1084,2138.0,2137.6,27.89069021]
[1741430341063,7.1084,2138.0,2137.6,28.51829021]
[1741430343459,7.1084,2138.0,2137.6,26.59899021]
[1741430344960,3.2078,2137.7,2137.6,26.59899021]
[1741430345163,3.28701985,2137.7,2137.6,26.59899021]
[1741430345761,3.2078,2137.7,2137.6,26.59899021]
[1741430345964,7.1084,2138.0,2137.6,26.59899021]
[1741430346153,0.07921011,2137.9,2137.6,26.59899021]
[1741430347660,3.2078,2137.7,2137.6,26.59899021]
[1741430349257,2.019,2137.7,2137.6,26.59899021]
[1741430349757,2.019,2137.7,2137.6,27.25169021]
[1741430350356,3.8527,2138.3,2137.6,27.25169021]
[1741430350556,3.2078,2138.3,2137.8,3.2078]
[1741430350753,2.019,2138.2,2137.8,3.2078]
[1741430350957,2.019,2138.2,2137.9,0.6527]
[1741430351557,2.019,2138.1,2137.9,0.6527]
[1741430354766,1.2597,2138.0,2137.9,0.6527]
[1741430354960,1.2597,2138.0,2137.8,3.2078]
[1741430355270,3.28701214,2137.9,2137.6,26.59899021]
[1741430355471,3.2078,2137.9,2137.6,26.59899021]
[1741430355665,0.73251265,2137.8,2137.6,26.59899021]
[1741430355868,2.019,2137.7,2137.6,26.59899021]
[1741430358567,2.019,2137.7,2137.6,24.9013195]
[1741430362765,3.2078,2137.9,2137.6,24.9013195]
[1741430362970,2.019,2137.8,2137.7,1.3336]
[1741430363172,2.019,2137.8,2137.7,1.9885]
[1741430364567,5.1607,2138.3,2137.7,1.9885]
[1741430364767,22.3048,2138.6,2137.8,3.2078]
[1741430365067,2.019,2138.5,2137.8,3.2078]
[1741430371483,3.2078,2138.3,2137.8,3.2078]
[1741430373784,2.019,2138.5,2137.8,3.2078]
[1741430376490,5.1581,2138.6,2137.8,3.2078]
[1741430376691,2.019,2138.5,2137.8,3.2078]
[1741430376890,2.019,2138.5,2138.1,3.2078]
[1741430377091,2.019,2138.5,2138.2,1.9148]
[1741430377292,2.019,2138.4,2138.2,1.9148]
[1741430379993,2.018,2138.4,2138.2,1.9148]
[1741430380587,1.9503,2138.6,2138.2,1.9148]
[1741430380788,2.018,2138.5,2138.4,3.2078]
[1741430381190,1.9503,2138.6,2138.4,3.2078]
[1741430382892,2.02501508,2138.7,2138.4,3.2078]
[1741430393103,1.8804,2138.6,2138.1,3.2078]
[1741430393397,3.2078,2138.3,2137.8,3.2078]
[1741430393602,3.2766,2138.2,2137.7,0.6485]
[1741430393902,3.8984,2138.2,2137.7,0.6485]
[1741430394296,3.2078,2138.0,2137.6,24.9013195]
[1741430396104,0.07920816,2137.9,2137.6,24.9013195]
[1741430396301,2.018,2137.8,2137.6,24.9013195]
[1741430396498,3.9302,2137.8,2137.6,24.9013195]
[1741430398204,3.2078,2138.0,2137.9,20.9711195]
[1741430398505,5.30500591,2138.0,2137.9,20.9711195]
[1741430399608,5.2258,2138.0,2137.9,20.9711195]
[1741430401309,2.019,2138.0,2137.9,20.9711195]
[1741430405911,3.2078,2138.3,2137.9,20.9711195]
[1741430406113,2.019,2138.2,2138.0,0.6177]
[1741430406311,2.019,2138.2,2138.1,1.3149]
[1741430407619,2.019,2138.2,2138.0,0.6177]
[1741430407813,2.019,2138.2,2137.9,20.9711195]
[1741430408012,0.6309,2138.1,2137.9,20.9711195]
[1741430409508,3.2078,2138.3,2137.9,20.9711195]
[1741430409713,2.019,2138.2,2137.9,20.9711195]
[1741430414618,3.2078,2138.3,2137.9,20.9711195]
[1741430414920,2.018,2138.3,2138.2,3.2078]
[1741430415823,1.0112,2138.3,2138.2,3.2078]
[1741430418326,2.018,2138.5,2138.2,3.2078]
[1741430418527,2.018,2138.5,2138.3,1.301]
[1741430422436,2.018,2138.5,2138.0,0.6256]
[1741430422631,0.6585,2138.4,2138.0,0.6523]
[1741430425835,0.6585,2138.4,2138.1,0.661]
[1741430426233,2.018,2138.3,2138.0,0.6523]
[1741430427440,0.6492,2138.2,2138.0,0.6523]
[1741430430937,0.6492,2138.2,2138.1,0.6095]
[1741430431143,3.2078,2138.6,2138.1,0.6095]
[1741430431337,0.61901508,2138.7,2138.2,3.8536]
[1741430431541,2.018,2138.5,2138.2,3.8536]
[1741430435944,0.00701508,2138.7,2138.2,3.8536]
[1741430436136,0.00701508,2138.7,2138.5,3.2078]
[1741430436336,0.00701508,2138.7,2138.6,1.8994]
[1741430440651,2.018,2139.2,2138.6,5.8994]
[1741430440843,44.79895106,2139.8,2139.1,3.2078]
[1741430440844,2.018,2139.3,2139.1,3.2078]
[1741430441044,2.018,2139.3,2139.2,1.2889]
[1741430443050,2.018,2139.3,2139.2,0.6488]
[1741430443051,5.2258,2139.3,2139.2,0.6488]
[1741430443344,5.2258,2139.3,2138.5,3.2078]
[1741430443558,3.2078,2139.0,2138.5,3.2078]
[1741430443741,2.6671,2138.9,2138.5,3.2078]
[1741430443941,0.6542,2138.8,2138.5,3.2078]
[1741430444145,1.2939,2138.8,2138.5,3.2078]
[1741430444343,0.6397,2138.8,2138.6,0.6313]
[1741430447753,2.02,2138.9,2138.6,0.6313]
[1741430447951,2.02,2138.9,2138.8,3.2078]
[1741430449450,2.02,2138.9,2138.7,0.6078]
[1741430450745,2.02,2138.9,2138.8,3.2078]
[1741430452550,2.02,2138.9,2138.7,0.6078]
[1741430457849,2.018,2139.0,2138.7,0.6078]
[1741430458849,2.018,2139.0,2138.9,3.2078]
[1741430460651,0.6097,2139.1,2138.9,3.2078]
[1741430460851,2.6267,2139.1,2138.9,3.2078]
[1741430461048,2.6267,2139.1,2139.0,0.6913]
[1741430462055,0.7108,2139.4,2139.0,0.6913]
[1741430462256,2.7195,2139.3,2139.1,0.7386]
[1741430463355,0.7025,2139.3,2139.1,0.7386]
[1741430463658,0.7025,2139.3,2139.2,3.2078]
[1741430467356,0.00701508,2139.5,2139.2,3.2078]
[1741430471263,3.21481508,2139.5,2138.9,20.9711195]
[1741430471665,0.07915073,2139.4,2138.9,20.9711195]
[1741430471866,3.21481508,2139.5,2138.9,20.9711195]
[1741430472065,1.453,2139.3,2138.9,20.9711195]
[1741430472260,2.021,2139.2,2138.9,20.9711195]
[1741430472465,5.9057,2139.2,2138.9,20.9711195]
[1741430476871,3.8847,2139.2,2138.9,20.9711195]
[1741430477070,2.02,2139.1,2139.0,0.6868]
[1741430483763,2.017,2139.1,2139.0,0.6868]
[1741430485369,0.7585,2139.4,2139.0,0.6868]
[1741430485564,2.017,2139.3,2139.0,0.6868]
[1741430488272,2.017,2139.3,2139.1,3.2078]
[1741430488770,2.017,2139.3,2139.2,0.7398]
[1741430491070,0.00701508,2139.5,2139.2,0.7398]
[1741430491379,2.017,2139.4,2139.3,0.7365]
[1741430492575,0.00701508,2139.5,2139.3,0.7365]
[1741430492773,0.00701508,2139.5,2139.4,4.0059]
[1741430497869,3.2078,2140.6,2139.4,8.94078]
[1741430498078,2.89680542,2140.5,2139.9,3.2078]
[1741430498277,2.8177,2140.5,2140.0,1.547]
[1741430499074,2.82471508,2140.5,2140.0,1.55401508]
[1741430499973,2.017,2140.4,2140.0,1.55401508]
[1741430501077,2.017,2140.4,2140.1,0.755]
[1741430501672,0.80771508,2140.5,2140.1,0.755]
[1741430501871,2.017,2140.4,2140.1,0.755]
[1741430502178,2.017,2140.4,2140.2,3.2078]
[1741430504378,2.017,2140.4,2140.0,1.55401508]
[1741430505287,2.017,2140.4,2140.0,2.30091508]
[1741430505678,2.017,2140.4,2140.0,1.55401508]
[1741430505984,2.017,2140.4,2140.0,0.78361508]
[1741430507890,2.017,2140.4,2140.0,0.00701508]
[1741430509685,2.017,2140.4,2140.0,0.79311508]
[1741430511083,2.017,2140.4,2140.1,0.766]
[1741430512992,2.017,2140.4,2140.1,1.538]
[1741430513694,2.017,2140.4,2140.2,3.2078]
[1741430514987,0.80771508,2140.5,2140.2,3.2078]
[1741430515292,2.82371508,2140.5,2140.2,3.2078]
[1741430518193,0.80771508,2140.5,2140.2,3.2078]
[1741430518402,2.82371508,2140.5,2140.2,3.2078]
[1741430522195,0.00701508,2140.5,2140.2,3.2078]
[1741430522396,2.016,2141.0,2140.2,3.2078]
[1741430522603,0.7414,2140.9,2140.8,3.2078]
[1741430522796,3.2078,2141.2,2140.8,3.2078]
[1741430523010,5.2238,2141.2,2140.9,0.75]
[1741430523209,1.5023,2141.1,2140.9,0.75]
[1741430524207,1.5023,2141.1,2140.8,3.2078]
[1741430524509,1.5023,2141.1,2140.5,3.2078]
[1741430524704,0.8104,2141.0,2140.5,3.2078]
[1741430525311,3.2078,2140.9,2140.2,3.2078]
[1741430525512,2.017,2140.8,2140.2,3.9578]
[1741430525712,0.7581,2140.7,2140.2,3.9578]
[1741430525912,0.7784,2140.6,2140.2,3.9578]
[1741430528717,1.4884,2140.7,2140.2,3.9578]
[1741430530416,2.2647,2140.7,2140.2,3.9578]
[1741430535318,2.2647,2140.7,2140.2,3.2078]
[1741430541527,0.0790993,2140.6,2140.2,3.2078]
[1741430542218,2.2647,2140.7,2140.2,3.2078]
[1741430542927,3.2868987,2140.6,2140.0,0.80721508]
[1741430543130,3.2078,2140.6,2140.0,0.80721508]
[1741430543528,0.0791062,2140.5,2140.0,0.80721508]
[1741430543828,2.016,2140.4,2140.0,0.80721508]
[1741430544023,1.5339,2140.3,2140.0,0.80721508]
[1741430546531,1.5339,2140.3,2140.0,0.00701508]
[1741430546723,4.7417,2140.3,2140.0,0.00701508]
[1741430547631,1.5339,2140.3,2140.0,0.82921508]
[1741430553835,1.5339,2140.3,2140.0,1.64721508]
[1741430555634,2.8251,2140.4,2140.0,1.64721508]
[1741430555635,0.8091,2140.4,2140.0,1.64721508]
[1741430555840,3.2078,2140.6,2140.0,1.64721508]
[1741430556049,2.016,2140.5,2140.0,1.64721508]
[1741430558531,2.016,2140.5,2140.0,0.82921508]
[1741430558931,2.016,2140.5,2140.0,1.65621508]
[1741430571347,2.016,2140.5,2140.2,3.2078]
[1741430571546,2.016,2140.5,2140.3,0.7514]
[1741430575049,2.016,2140.5,2140.2,3.2078]
[1741430581352,2.016,2140.5,2140.0,0.00701508]
[1741430581353,3.2078,2140.3,2140.0,0.00701508]
[1741430581555,1.6137,2140.2,2140.0,0.00701508]
[1741430581760,2.016,2140.1,2140.0,0.00701508]
[1741430584359,2.016,2140.1,2139.5,0.8264]
[1741430584360,2.09511604,2140.1,2139.5,0.8264]
[1741430584565,3.2078,2139.9,2139.5,0.8264]
[1741430584760,1.582,2139.8,2139.5,0.8264]
[1741430584959,2.016,2139.7,2139.5,0.8264]
[1741430585961,2.016,2139.7,2139.4,0.00701508]
[1741430588959,3.2078,2139.6,2139.4,0.00701508]
[1741430589361,0.7957,2139.5,2139.4,0.00701508]
[1741430592266,0.87484591,2139.5,2139.2,9.04554497]
[1741430592466,3.2078,2139.3,2139.2,9.04554497]
[1741430592767,5.2238,2139.3,2139.2,9.04554497]
[1741430592958,0.00701508,2139.8,2139.5,42.4083]
[1741430593159,3.2078,2139.6,2139.5,42.4083]
[1741430593364,3.28694948,2139.6,2139.5,42.4083]
[1741430594869,3.2078,2139.6,2139.5,42.4083]
[1741430595064,3.28694471,2139.6,2139.5,42.4083]
[1741430595574,3.2078,2139.6,2139.5,42.4083]
[1741430595870,3.2869452,2139.6,2139.5,42.4083]
[1741430596070,5.6315452,2139.6,2139.5,42.4083]
[1741430597872,4.1098452,2139.6,2139.5,42.4083]
[1741430598581,4.10984178,2139.6,2139.5,42.4083]
[1741430599574,0.07914178,2139.6,2139.5,42.4083]
[1741430599778,2.017,2139.6,2139.5,44.7429]
[1741430606880,0.00701508,2139.8,2139.5,44.7429]
[1741430607079,2.017,2139.7,2139.5,44.7429]
[1741430607584,2.7737,2139.7,2139.5,44.7429]
[1741430611385,2.7737,2139.7,2139.5,43.9952]
[1741430611689,2.7737,2139.7,2139.5,42.4083]
[1741430611690,0.07914291,2139.6,2139.5,42.4083]
[1741430615885,2.017,2139.7,2139.5,42.4083]
[1741430616296,2.017,2139.7,2139.6,0.754]
[1741430616488,0.00701508,2139.8,2139.6,0.754]
[1741430616797,0.00701508,2139.8,2139.7,1.513]
[1741430616996,2.02401508,2139.8,2139.7,1.513]
[1741430618589,0.00701508,2139.8,2139.7,1.513]
[1741430618790,2.02401508,2139.8,2139.7,1.513]
[1741430623700,2.02301508,2139.8,2139.7,1.513]
[1741430625390,6.1318,2140.5,2139.7,1.513]
[1741430625591,2.89051311,2140.4,2139.7,1.513]
[1741430625897,2.8114,2140.4,2139.9,3.2078]
[1741430626399,2.8114,2140.4,2140.0,0.7517]
[1741430626588,2.81841508,2140.4,2140.1,0.8173]
[1741430628498,2.81841508,2140.4,2140.2,0.7719]
[1741430629094,2.016,2140.3,2140.2,0.7719]
[1741430630501,0.00701508,2140.4,2140.2,0.7719]
[1741430630696,0.00701508,2140.4,2140.3,0.7902]
[1741430630895,2.02301508,2140.4,2140.3,0.7902]
[1741430636602,0.00701508,2140.4,2140.3,0.7902]
[1741430636792,2.02301508,2140.4,2140.3,0.7902]
[1741430644319,2.02301508,2140.4,2140.2,3.9797]
[1741430645025,2.02301508,2140.4,2140.2,4.7332]
[1741430645521,0.7631,2140.3,2140.2,4.7332]
[1741430647725,0.7631,2140.3,2140.2,3.9797]
[1741430647917,0.7631,2140.3,2140.2,3.2078]
[1741430648121,2.3326,2140.3,2140.2,3.2078]
[1741430649821,2.7781,2140.3,2140.2,3.2078]
[1741430652612,0.00701508,2140.4,2140.2,3.2078]
[1741430652817,2.02201508,2140.4,2140.3,1.5338]
[1741430653020,2.02201508,2140.4,2140.3,2.2789]
[1741430659725,2.015,2140.8,2140.3,6.2789]
[1741430659932,2.015,2140.8,2140.7,3.2078]
[1741430661128,0.00701508,2141.0,2140.7,3.2078]
[1741430661329,2.015,2140.9,2140.8,2.3621]
[1741430665529,0.00701508,2141.0,2140.8,2.3621]
[1741430665735,2.015,2140.9,2140.8,2.3621]
[1741430669634,2.02201508,2141.0,2140.8,2.3621]
[1741430671037,2.02201508,2141.0,2140.7,3.2078]
[1741430671237,0.7629,2140.9,2140.7,3.2078]
[1741430672839,0.7629,2140.9,2140.7,4.0008]
[1741430676539,0.00701508,2141.0,2140.7,4.0008]
[1741430676741,2.02201508,2141.0,2140.7,4.0008]
[1741430682247,0.00701508,2141.0,2140.7,4.0008]
[1741430683352,0.8014,2141.3,2141.2,6.24952989]
[1741430683553,2.8154,2141.3,2141.2,6.24952989]
[1741430685243,2.014,2141.3,2141.2,6.24952989]
[1741430686649,2.7964,2141.3,2141.2,6.24952989]
[1741430687247,2.014,2141.3,2141.2,6.24952989]
[1741430691050,2.09306939,2141.3,2141.2,6.24952989]
[1741430691449,2.014,2141.3,2141.0,3.2078]
[1741430693959,2.014,2141.3,2141.1,2.3378]
[1741430695260,2.014,2141.3,2141.2,3.2078]
[1741430700356,2.09307418,2141.3,2141.2,3.2078]
[1741430700551,2.09308263,2141.3,2141.2,3.2078]
[1741430701150,6.014,2141.3,2141.2,3.2078]
[1741430701357,6.09308188,2141.3,2141.2,3.2078]
[1741430702157,6.09308188,2141.3,2140.9,3.2078]
[1741430702361,0.25978188,2141.2,2140.6,2.3281]
[1741430702662,0.07908188,2141.1,2140.6,2.3281]
[1741430703263,0.07908188,2141.1,2140.7,3.2078]
[1741430704155,3.28688188,2141.1,2140.5,0.00701508]
[1741430704360,0.07908188,2141.0,2140.5,0.00701508]
[1741430704561,2.014,2140.9,2140.5,0.00701508]
[1741430704752,0.07908188,2140.8,2140.5,0.00701508]
[1741430709858,0.07910054,2140.7,2140.5,0.00701508]
[1741430710059,0.07910054,2140.6,2140.5,0.00701508]
[1741430710259,2.1947,2140.9,2140.5,0.00701508]
[1741430710570,0.07910111,2140.8,2140.5,0.00701508]
[1741430710866,2.014,2140.7,2140.5,0.00701508]
[1741430711061,2.014,2140.7,2140.6,3.2078]
[1741430711867,0.1813,2141.3,2140.6,3.2078]
[1741430712060,2.09308683,2141.2,2140.7,0.7834]
[1741430712261,0.07908683,2141.1,2140.8,1.5658]
[1741430714263,0.07908524,2141.0,2140.8,1.5658]
[1741430714461,2.014,2141.2,2140.8,1.5658]
[1741430714667,2.014,2141.1,2140.9,3.2078]
[1741430714866,2.014,2141.2,2141.0,0.7553]
[1741430715666,3.3891,2141.7,2141.0,0.7553]
[1741430715966,2.09307002,2141.6,2141.0,0.7553]
[1741430716165,0.07907002,2141.5,2141.0,0.7553]
[1741430717768,0.07906966,2141.4,2141.0,0.7553]
[1741430717979,0.07906966,2141.5,2141.0,0.7553]
[1741430718179,0.07906966,2141.4,2141.0,0.7553]
[1741430718378,0.07906966,2141.5,2141.0,0.7553]
[1741430718681,0.07906965,2141.4,2141.0,0.7553]
[1741430718875,2.014,2141.6,2141.0,0.7553]
[1741430719077,0.07906979,2141.5,2141.0,0.7553]
[1741430720084,0.07906979,2141.5,2141.2,3.2078]
[1741430720382,2.014,2141.4,2141.3,2.3722]
[1741430720576,2.014,2141.5,2141.3,2.3722]
[1741430721285,0.6921,2141.5,2141.3,2.3722]
[1741430727784,3.68533116,2142.0,2141.3,2.3722]
[1741430727785,3.2078,2142.0,2141.3,2.3722]
[1741430727984,2.09205008,2141.9,2141.6,3.2078]
[1741430728190,2.013,2141.9,2141.7,2.5527]
[1741430732499,0.07905558,2141.8,2141.7,2.5527]
[1741430734690,2.013,2141.9,2141.7,2.5527]
[1741430738898,2.013,2141.9,2141.7,0.8291]
[1741430739092,2.013,2141.9,2141.6,3.2078]
[1741430739291,0.42225291,2141.8,2141.6,3.2078]
[1741430739501,0.3432,2141.8,2141.6,3.2078]
[1741430739695,0.07906076,2141.7,2141.6,4.0583]
[1741430740296,0.07906076,2141.7,2141.6,3.2078]
[1741430740498,3.28686076,2141.7,2141.5,0.00701508]
[1741430740698,0.87466076,2141.6,2141.5,0.00701508]
[1741430741300,0.87466076,2141.6,2141.5,0.85751508]
[1741430741499,0.3432,2141.8,2141.5,0.85751508]
[1741430741700,0.07906019,2141.7,2141.5,0.85751508]
[1741430747003,3.1712,2141.9,2141.6,0.8722]
[1741430747203,0.07905881,2141.8,2141.6,0.8722]
[1741430747799,0.07905881,2141.8,2141.5,0.85751508]
[1741430749104,0.07906327,2141.7,2141.5,0.85751508]
[1741430749317,0.07906327,2141.6,2141.5,0.85751508]
[1741430750414,0.07906327,2141.6,2141.5,0.00701508]
[1741430751308,0.07906327,2141.8,2141.5,0.00701508]
[1741430751617,0.07906327,2141.7,2141.5,0.00701508]
[1741430751915,0.07906327,2141.6,2141.5,0.00701508]
[1741430752115,0.42196327,2141.6,2141.5,0.00701508]
[1741430752313,4.42196327,2141.6,2141.5,0.00701508]
[1741430753604,4.58386327,2141.6,2141.5,0.00701508]
[1741430754413,4.58387614,2141.6,2141.5,0.00701508]
[1741430757016,0.58387614,2141.6,2141.5,0.00701508]
[1741430758511,2.09207614,2141.6,2141.5,0.00701508]
[1741430759714,2.09206873,2141.6,2141.5,0.00701508]
[1741430761014,2.09207385,2141.6,2141.5,0.00701508]
[1741430762309,2.3561,2141.6,2141.5,0.00701508]
[1741430762614,2.43517673,2141.6,2141.5,0.00701508]
[1741430763612,2.43517673,2141.6,2141.5,0.00282886]
[1741430763913,2.09207673,2141.6,2141.5,0.00096816]
[1741430764416,2.09207452,2141.6,2141.5,0.00096816]
[1741430765017,2.09207452,2141.6,2140.9,3.2078]
[1741430765215,0.07907452,2141.5,2140.9,3.2078]
[1741430766119,0.07907567,2141.4,2141.0,0.00701508]
[1741430766321,0.07907567,2141.3,2141.0,0.00701508]
[1741430766519,2.013,2141.2,2141.0,0.00701508]
[1741430777520,0.00604692,2141.8,2141.0,0.00701508]
[1741430777521,2.012,2141.3,2141.0,0.00701508]
[1741430777825,0.00604692,2141.8,2141.2,3.2078]
[1741430778026,0.00604692,2141.8,2141.6,3.2078]
[1741430778027,2.09105693,2141.7,2141.6,3.2078]
[1741430779526,2.012,2141.7,2141.6,3.2078]
[1741430779929,2.012,2141.7,2141.3,1.52735192]
[1741430780127,2.012,2141.7,2141.3,4.73515192]
[1741430780925,5.2198,2141.7,2141.0,3.21481508]
[1741430782226,0.07906243,2141.6,2141.0,3.21481508]
[1741430782431,0.89276243,2141.6,2141.0,3.21481508]
[1741430782731,22.88856224,2141.5,2141.0,3.21481508]
[1741430782927,22.01629981,2141.5,2141.0,3.21481508]
[1741430783133,22.01629981,2141.5,2141.1,0.8342]
[1741430784433,2.012,2141.4,2141.2,0.8123]
[1741430788734,2.8711,2141.4,2141.2,0.8123]
[1741430791437,6.0789,2141.4,2141.0,0.00701508]
[1741430791636,3.2078,2141.1,2141.0,0.00701508]
[1741430792230,3.2868843,2141.1,2141.0,0.00096816]
[1741430792432,3.2868843,2141.1,2140.6,0.8162]
[1741430792632,3.7852843,2141.0,2140.6,0.8162]
[1741430792932,3.7062,2141.0,2140.6,0.8162]
[1741430793632,3.7062,2141.0,2140.6,0.82321508]
[1741430794232,3.7062,2141.0,2140.6,0.00701508]
[1741430794433,3.2078,2140.8,2140.6,0.00701508]
[1741430794635,3.2078,2140.8,2140.4,0.8081]
[1741430794941,0.8573,2140.7,2140.4,0.8081]
[1741430795137,2.012,2140.6,2140.4,0.8081]
[1741430795538,2.012,2140.6,2140.4,1.6382]
[1741430796042,3.2078,2140.5,2140.3,0.00701508]
[1741430798941,2.012,2140.6,2140.3,0.00701508]
[1741430799142,2.012,2140.6,2140.3,0.83471508]
[1741430799538,2.012,2140.6,2140.4,0.8792]
[1741430801745,2.012,2140.6,2140.5,0.8485]
[1741430804047,2.012,2140.6,2140.3,0.00701508]
[1741430804251,1.6572,2140.5,2140.2,3.2078]
[1741430804453,2.5067,2140.5,2140.2,3.2078]
[1741430806049,0.8302,2140.5,2140.3,1.6778]
[1741430806248,0.8302,2140.5,2140.3,2.4823]
[1741430807155,5.2198,2140.6,2140.3,2.4823]
[1741430807748,6.0339,2140.6,2140.2,3.2078]
[1741430807954,1.7207,2140.5,2140.2,3.2078]
[1741430809050,1.7207,2140.5,2140.2,4.0128]
[1741430809254,1.7207,2140.5,2140.3,1.708]
[1741430809456,1.7207,2140.5,2140.2,4.0128]
[1741430810558,1.7207,2140.5,2140.2,3.2078]
[1741430812756,3.2078,2140.3,2140.1,0.00701508]
[1741430812957,2.9674,2140.2,2140.1,0.00701508]
[1741430813557,3.9117,2140.2,2140.1,0.00701508]
[1741430817959,2.9674,2140.2,2140.1,0.00701508]
[1741430818759,2.013,2140.2,2140.1,0.00701508]
[1741430820955,3.2078,2140.3,2140.1,0.00701508]
[1741430821159,2.013,2140.3,2140.1,0.00701508]
[1741430821362,5.2208,2140.3,2140.1,0.00701508]
[1741430822757,5.2208,2140.3,2140.0,0.21486447]
[1741430825166,1.9201,2140.2,2140.0,0.21486447]
[1741430825561,1.9201,2140.2,2139.9,1.71501508]
[1741430825755,3.2078,2140.0,2139.9,0.85371508]
[1741430826964,5.2208,2140.3,2139.9,0.85371508]
[1741430827169,5.2208,2140.3,2140.0,0.9072]
[1741430827655,5.2208,2140.3,2140.1,0.9403]
[1741430830265,5.2208,2140.3,2140.0,0.9072]
[1741430830465,1.9027,2140.2,2139.9,0.85371508]
[1741430830655,1.9027,2140.2,2140.0,0.9987]
[1741430831062,2.735,2140.2,2140.0,0.9987]
[1741430832064,1.9027,2140.2,2140.0,0.9987]
[1741430832266,5.2208,2140.3,2140.1,0.9592]
[1741430834267,5.2208,2140.3,2140.0,0.9987]
[1741430834472,1.9328,2140.2,2140.0,0.9987]
[1741430834666,1.9328,2140.2,2139.9,0.85371508]
[1741430834969,2.7439,2140.2,2139.9,0.85371508]
[1741430835368,3.2078,2140.0,2139.9,0.00701508]
[1741430835574,2.7439,2140.2,2139.9,0.00701508]
[1741430835770,1.9328,2140.2,2139.9,0.97621508]
[1741430839573,2.8116,2140.2,2139.9,0.97621508]
[1741430840171,2.8116,2140.2,2139.9,0.25551119]
[1741430840573,3.2078,2140.0,2139.8,0.8171]
[1741430840773,2.012,2139.9,2139.7,0.922]
[1741430840973,2.9655,2139.9,2139.7,0.922]
[1741430842787,0.9826,2139.8,2139.7,0.922]
[1741430843586,2.9655,2139.9,2139.7,0.922]
[1741430844271,2.012,2139.9,2139.7,0.922]
[1741430850381,2.012,2139.9,2139.6,1.80737674]
[1741430853591,2.012,2139.9,2139.7,1.0135]
[1741430854492,3.2078,2140.3,2139.7,1.0135]
[1741430854693,3.2078,2140.3,2139.8,6.1308]
[1741430854694,5.2198,2140.3,2139.8,6.1308]
[1741430855084,0.961,2140.2,2139.9,0.981]
[1741430855283,0.961,2140.2,2140.0,0.9577]
[1741430855993,1.9198,2140.2,2140.0,0.9577]
[1741430856191,5.2198,2140.3,2140.0,0.9577]
[1741430856394,5.2198,2140.3,2140.1,0.9689]